[Event "34th MPL National U14G-ch 2022"]
[Site "Ahmedabad"]
[Date "2022.05.10"]
[Round "4.3"]
[White "Aswinika Mani R"]
[Black "Shubhi Gupta"]
[Result "0-1"]
[ECO "C54"]
[WhiteElo "1408"]
[BlackElo "1613"]
[Annotator "NA RC COMBH"]
[PlyCount "130"]
[EventDate "2022.05.09"]
[EventType "swiss"]
[EventCountry "IND"]
[SourceTitle "playchess.com"]
[Source "ChessBase"]
[SourceQuality "1"]
[TimeControl "5400+30"]

1. e4 {[%emt 0:00:19]} e5 {[%emt 0:00:16]} 2. Nf3 {[%emt 0:00:06]} Nc6 {[%emt 0:00:09]} 3. Bc4 {[%emt 1:31:35]} Bc5 {[%emt 0:00:16]} 4. c3 {[%emt 0:00:00]} Nf6 {[%emt 0:00:23]} 5. d3 {[%emt 0:00:00]} d6 {[%emt 0:00:25]} 6. h3 {[%emt 0:00:00]} h6 {[%emt 0:02:26]} 7. a4 {[%emt 0:00:00]} a5 {[%emt 0:01:00]} 8. O-O {[%emt 0:00:00]} O-O {[%emt 0:00:31]} 9. Be3 {[%emt 0:00:00]} Ba7 {[%emt 0:01:16]} 10. Qb3 {[%emt 0:00:00]} Ne7 {[%emt 0:02:10]} 11. Nbd2 {[%emt 0:00:00]} Ng6 {[%emt 0:01:12]} 12. Rfe1 {[%emt 0:00:00]} Nh5 {[%emt 0:02:20]} 13. d4 {[%emt 0:00:00]} Qf6 {[%emt 0:03:51]} 14. Rad1 {[%emt 0:00:00]} Ngf4 {[%emt 0:02:00]} 15. Kh2 {[%emt 0:00:00]} g5 {[%emt 0:05:01]} 16. g4 {[%emt 0:00:00]} Ng7 {[%emt 0:02:49]} 17. Rg1 {[%emt 0:00:00]} Nge6 {[%emt 0:04:12]} 18. dxe5 {[%emt 0:00:00]} dxe5 {[%emt 0:01:02]} 19. Qb5 {[%emt 0:00:00]} Ng6 {[%emt 0:03:08]} 20. h4 {[%emt 0:00:00]} c6 {[%emt 0:02:34]} 21. Qb3 {[%emt 0:00:00]} Nxh4 {[%emt 0:05:11]} 22. Nxh4 {[%emt 0:00:00]} gxh4 {[%emt 0:00:23]} 23. Bxa7 {[%emt 0:00:00]} Rxa7 {[%emt 0:00:31]} 24. Qb6 {[%emt 0:00:00]} Ra8 {[%emt 0:04:30]} 25. Qe3 {[%emt 0:00:00]} Ng5 {[%emt 0:00:46]} 26. Be2 {[%emt 0:00:00]} Be6 {[%emt 0:13:17]} 27. Nf3 {[%emt 0:00:00]} Kh8 {[%emt 0:00:39]} 28. Nxh4 {[%emt 0:00:00]} Nxe4 {[%emt 0:00:53]} 29. Nf3 {[%emt 0:00:00]} Ng5 {[%emt 0:07:47]} 30. Nxe5 {[%emt 0:00:00]} Rae8 {[%emt 0:05:50]} 31. f4 {[%emt 0:00:00]} Bc8 {[%emt 0:00:59]} 32. fxg5 {[%emt 0:00:00]} Qxe5+ {[%emt 0:00:20]} 33. Qxe5+ {[%emt 0:00:00]} Rxe5 {[%emt 0:00:07]} 34. Bf3 {[%emt 0:00:00]} hxg5 {[%emt 0:01:03]} 35. Kg3 {[%emt 0:00:00]} Kg7 {[%emt 0:02:54]} 36. Rh1 {[%emt 0:00:00]} Rfe8 {[%emt 0:04:03]} 37. Rh5 {[%emt 0:00:00]} Be6 {[%emt 0:01:32]} 38. Rdh1 {[%emt 0:01:02]} Rd8 {[%emt 0:02:52]} 39. Rh7+ {[%emt 0:02:28]} Kf6 {[%emt 0:00:22]} 40. Rh8 {[%emt 0:00:21]} Rd3 {[%emt 0:00:31]} 41. Kf2 {[%emt 0:02:53]} Rd2+ {[%emt 0:00:32]} 42. Kg3 {[%emt 0:02:38]} Re3 {[%emt 0:01:09]} 43. Rf1 {[%emt 0:01:21]} Bd5 {[%emt 0:00:16]} 44. Rh3 {[%emt 0:00:52]} Bxf3 {[%emt 0:00:10]} 45. Rxf3+ {[%emt 0:00:05]} Rxf3+ {[%emt 0:00:03]} 46. Kxf3 {[%emt 0:00:08]} Rd3+ {[%emt 0:00:01]} 47. Kg2 {[%emt 0:00:07]} Rxh3 {[%emt 0:00:02]} 48. Kxh3 {[%emt 0:00:05]} Ke5 {[%emt 0:00:08]} 49. Kg3 {[%emt 0:00:21]} Ke4 {[%emt 0:00:13]} 50. b4 {[%emt 0:00:16]} axb4 {[%emt 0:00:23]} 51. cxb4 {[%emt 0:00:05]} Kd4 {[%emt 0:00:23]} 52. Kf3 {[%emt 0:00:06]} Kc4 {[%emt 0:00:05]} 53. b5 {[%emt 0:00:12]} cxb5 {[%emt 0:00:03]} 54. axb5 {[%emt 0:00:03]} Kxb5 {[%emt 0:00:05]} 55. Ke4 {[%emt 0:00:07]} Kc4 {[%emt 0:00:06]} 56. Kf5 {[%emt 0:00:11]} b5 {[%emt 0:00:03]} 57. Kxg5 {[%emt 0:00:15]} b4 {[%emt 0:00:04]} 58. Kf6 {[%emt 0:00:04]} b3 {[%emt 0:00:03]} 59. Kxf7 {[%emt 0:00:05]} b2 {[%emt 0:00:02]} 60. g5 {[%emt 0:00:09]} b1=Q {[%emt 0:00:05]} 61. g6 {[%emt 0:00:22]} Qf5+ {[%emt 0:00:40]} 62. Kg7 {[%emt 0:00:05]} Kd5 {[%emt 0:00:02]} 63. Kh8 {[%emt 0:00:08]} Qh5+ {[%emt 0:00:06]} 64. Kg7 {[%emt 0:00:09]} Ke6 {[%emt 0:00:07]} 65. Kf8 {[%emt 0:00:15]} Qh8# {[%emt 0:00:09]} 0-1

[Event "34th MPL National U14G-ch 2022"]
[Site "Ahmedabad"]
[Date "2022.05.10"]
[Round "4.4"]
[White "Pragnya H G"]
[Black "Falak Joni Naik"]
[Result "1-0"]
[ECO "B06"]
[WhiteElo "1605"]
[BlackElo "1349"]
[Annotator "NA RC COMBH"]
[PlyCount "73"]
[EventDate "2022.05.09"]
[EventType "swiss"]
[EventCountry "IND"]
[SourceTitle "playchess.com"]
[Source "ChessBase"]
[SourceQuality "1"]
[TimeControl "5400+30"]

1. e4 {[%emt 0:02:30]} g6 {[%emt 0:00:06]} 2. d4 {[%emt 0:00:04]} Bg7 {[%emt 0:00:05]} 3. Nc3 {[%emt 0:00:08]} d6 {[%emt 0:00:06]} 4. f4 {[%emt 0:00:04]} e6 {[%emt 0:00:42]} 5. Nf3 {[%emt 0:00:08]} Ne7 {[%emt 0:00:07]} 6. Be3 {[%emt 0:00:07]} a6 {[%emt 0:00:12]} 7. Bd3 {[%emt 0:00:09]} b6 {[%emt 0:00:12]} 8. Qd2 {[%emt 0:00:28]} h6 {[%emt 0:00:07]} 9. O-O-O {[%emt 0:00:25]} d5 {[%emt 0:06:40]} 10. g4 {[%emt 0:04:05]} Bb7 {[%emt 0:02:58]} 11. Rhf1 {[%emt 0:04:42]} f5 {[%emt 0:03:38]} 12. exf5 {[%emt 0:02:09]} exf5 {[%emt 0:01:09]} 13. gxf5 {[%emt 0:00:17]} gxf5 {[%emt 0:01:00]} 14. Bf2 {[%emt 0:01:14]} Nbc6 {[%emt 0:03:01]} 15. Qe2 {[%emt 0:05:28]} Qd6 {[%emt 0:07:05]} 16. Ne5 {[%emt 0:02:24]} Bxe5 {[%emt 0:03:07]} 17. fxe5 {[%emt 0:00:40]} Qe6 {[%emt 0:01:23]} 18. Be3 {[%emt 0:01:53]} Kd7 {[%emt 0:03:27]} 19. Nxd5 {[%emt 0:14:29]} Nxd4 {[%emt 0:06:28]} 20. Nxb6+ {[%emt 0:03:02]} cxb6 {[%emt 0:03:30]} 21. Bc4 {[%emt 0:00:57]} Bd5 {[%emt 0:04:12]} 22. Rxd4 {[%emt 0:00:43]} Kc7 {[%emt 0:02:52]} 23. Bxd5 {[%emt 0:00:29]} Nxd5 {[%emt 0:00:39]} 24. Qc4+ {[%emt 0:00:05]} Qc6 {[%emt 0:00:39]} 25. Qxd5 {[%emt 0:00:06]} Qxd5 {[%emt 0:01:19]} 26. Rxd5 {[%emt 0:00:10]} Raf8 {[%emt 0:01:21]} 27. Bf4 {[%emt 0:00:32]} h5 {[%emt 0:01:02]} 28. e6+ {[%emt 0:00:17]} Kc8 {[%emt 0:00:55]} 29. e7 {[%emt 0:00:15]} Re8 {[%emt 0:00:20]} 30. Bg5 {[%emt 0:00:10]} Rhg8 {[%emt 0:01:52]} 31. h4 {[%emt 0:00:16]} Rxg5 {[%emt 0:02:16]} 32. hxg5 {[%emt 0:00:13]} Rxe7 {[%emt 0:00:05]} 33. Rdxf5 {[%emt 0:00:13]} Re4 {[%emt 0:02:35]} 34. Rg1 {[%emt 0:00:19]} h4 {[%emt 0:00:14]} 35. g6 {[%emt 0:00:09]} Re8 {[%emt 0:00:25]} 36. g7 {[%emt 0:00:21]} h3 {[%emt 0:00:23]} 37. Rf8 {[%emt 0:00:09]} 1-0

[Event "34th MPL National U14G-ch 2022"]
[Site "Ahmedabad"]
[Date "2022.05.10"]
[Round "4.5"]
[White "Dakshita Kumawat"]
[Black "Debapriya Manna"]
[Result "1-0"]
[ECO "D02"]
[WhiteElo "1575"]
[BlackElo "1384"]
[Annotator "NA RC COMBH"]
[PlyCount "71"]
[EventDate "2022.05.09"]
[EventType "swiss"]
[EventCountry "IND"]
[SourceTitle "playchess.com"]
[Source "ChessBase"]
[SourceQuality "1"]
[TimeControl "5400+30"]

1. d4 {[%emt 0:00:53]} d5 {[%emt 0:01:19]} 2. Bf4 {[%emt 0:00:04]} Nf6 {[%emt 0:00:47]} 3. e3 {[%emt 0:00:04]} e6 {[%emt 0:01:12]} 4. Nf3 {[%emt 0:00:04]} Bd6 {[%emt 0:01:06]} 5. Bg3 {[%emt 0:00:05]} O-O {[%emt 0:00:46]} 6. Nbd2 {[%emt 0:00:25]} c5 {[%emt 0:01:46]} 7. c3 {[%emt 0:03:39]} b6 {[%emt 0:03:42]} 8. Bd3 {[%emt 0:04:28]} Bb7 {[%emt 0:03:08]} 9. Bh4 {[%emt 0:03:58]} Nbd7 {[%emt 0:09:50]} 10. Qb1 {[%emt 0:14:08]} Qc7 {[%emt 0:07:24]} 11. g4 {[%emt 0:01:37]} cxd4 {[%emt 0:18:33]} 12. cxd4 {[%emt 0:03:53]} Qc6 {[%emt 0:13:18]} 13. O-O {[%emt 0:10:58]} Rac8 {[%emt 0:04:44]} 14. b4 {[%emt 0:06:47]} Nxg4 {[%emt 0:06:00]} 15. Bxh7+ {[%emt 0:00:29]} Kh8 {[%emt 0:00:07]} 16. h3 {[%emt 0:04:28]} Ngf6 {[%emt 0:01:18]} 17. Bd3 {[%emt 0:00:55]} e5 {[%emt 0:03:56]} 18. Bf5 {[%emt 0:07:33]} Rc7 {[%emt 0:07:42]} 19. Bg3 {[%emt 0:02:45]} Re8 {[%emt 0:02:57]} 20. Ng5 {[%emt 0:05:43]} Kg8 {[%emt 0:00:43]} 21. Ndf3 {[%emt 0:00:47]} Ba6 {[%emt 0:05:33]} 22. Bxd7 {[%emt 0:05:19]} Nxd7 {[%emt 0:01:06]} 23. Qh7+ {[%emt 0:00:27]} Kf8 {[%emt 0:00:08]} 24. Rfc1 {[%emt 0:02:48]} Qxc1+ {[%emt 0:02:06]} 25. Rxc1 {[%emt 0:00:01]} Rxc1+ {[%emt 0:00:02]} 26. Kh2 {[%emt 0:00:54]} f6 {[%emt 0:02:37]} 27. Qh8+ {[%emt 0:00:50]} Ke7 {[%emt 0:00:06]} 28. Qxg7+ {[%emt 0:00:04]} Kd8 {[%emt 0:00:06]} 29. Nf7+ {[%emt 0:01:26]} Kc7 {[%emt 0:00:47]} 30. dxe5 {[%emt 0:00:49]} fxe5 {[%emt 0:00:26]} 31. N3xe5 {[%emt 0:02:11]} Nxe5 {[%emt 0:01:24]} 32. Nxd6+ {[%emt 0:02:11]} Kxd6 {[%emt 0:00:14]} 33. Qf6+ {[%emt 0:00:02]} Kd7 {[%emt 0:01:02]} 34. Bxe5 {[%emt 0:00:02]} Rc2 {[%emt 0:01:04]} 35. Qf5+ {[%emt 0:00:06]} Kd8 {[%emt 0:00:22]} 36. Bf6+ {[%emt 0:00:01]} 1-0

[Event "34th MPL National U14G-ch 2022"]
[Site "Ahmedabad"]
[Date "2022.05.10"]
[Round "4.6"]
[White "Arushi Srichandan"]
[Black "Roy Aanya"]
[Result "0-1"]
[ECO "C02"]
[WhiteElo "1292"]
[BlackElo "1560"]
[Annotator "NA RC COMBH"]
[PlyCount "60"]
[EventDate "2022.05.09"]
[EventType "swiss"]
[EventCountry "IND"]
[SourceTitle "playchess.com"]
[Source "ChessBase"]
[SourceQuality "1"]
[TimeControl "5400+30"]

1. e4 {[%emt 1:31:00]} e6 {[%emt 0:00:09]} 2. d4 {[%emt 0:00:00]} d5 {[%emt 0:00:03]} 3. e5 {[%emt 0:00:00]} c5 {[%emt 0:00:02]} 4. c3 {[%emt 0:00:00]} Qb6 {[%emt 0:00:03]} 5. Nf3 {[%emt 0:00:00]} Nc6 {[%emt 0:00:10]} 6. Qb3 {[%emt 0:00:00]} Qxb3 {[%emt 0:01:38]} 7. axb3 {[%emt 0:00:00]} cxd4 {[%emt 0:00:10]} 8. cxd4 {[%emt 0:00:00]} Be7 {[%emt 0:02:22]} 9. Nc3 {[%emt 0:00:00]} f6 {[%emt 0:04:12]} 10. Bb5 {[%emt 0:00:00]} Bd7 {[%emt 0:01:29]} 11. Be3 {[%emt 0:00:00]} Bd8 {[%emt 0:07:27]} 12. g4 {[%emt 0:00:00]} fxe5 {[%emt 0:02:54]} 13. dxe5 {[%emt 0:00:00]} Nge7 {[%emt 0:01:48]} 14. O-O {[%emt 0:00:00]} O-O {[%emt 0:02:59]} 15. Kg2 {[%emt 0:00:00]} a6 {[%emt 0:20:01]} 16. Bc5 {[%emt 0:00:00]} Rc8 {[%emt 0:02:57]} 17. Bxc6 {[%emt 0:00:00]} Bxc6 {[%emt 0:00:57]} 18. Nd4 {[%emt 0:00:00]} Bd7 {[%emt 0:02:35]} 19. Bd6 {[%emt 0:00:00]} Rf4 {[%emt 0:03:39]} 20. Rad1 {[%emt 0:00:00]} Rxg4+ {[%emt 0:01:52]} 21. Kf3 {[%emt 0:00:00]} Rh4 {[%emt 0:00:55]} 22. Kg3 {[%emt 0:00:00]} Rxd4 {[%emt 0:00:21]} 23. Rxd4 {[%emt 0:00:00]} Nf5+ {[%emt 0:00:29]} 24. Kg2 {[%emt 0:00:00]} Nxd4 {[%emt 0:00:28]} 25. Re1 {[%emt 0:00:00]} Nxb3 {[%emt 0:00:53]} 26. f4 {[%emt 0:00:00]} g6 {[%emt 0:00:13]} 27. Rd1 {[%emt 0:00:00]} Na5 {[%emt 0:00:38]} 28. Kf3 {[%emt 0:00:00]} Nc4 {[%emt 0:00:13]} 29. h3 {[%emt 0:00:00]} Nxb2 {[%emt 0:00:11]} 30. Rc1 {[%emt 0:00:00]} Nd3 {[%emt 0:01:25]} 0-1

[Event "34th MPL National U14G-ch 2022"]
[Site "Ahmedabad"]
[Date "2022.05.10"]
[Round "4.7"]
[White "Anagha K G R"]
[Black "Shreya G Hipparagi"]
[Result "0-1"]
[ECO "D93"]
[WhiteElo "1288"]
[BlackElo "1548"]
[Annotator "NA RC COMBH"]
[PlyCount "116"]
[EventDate "2022.05.09"]
[EventType "swiss"]
[EventCountry "IND"]
[SourceTitle "playchess.com"]
[Source "ChessBase"]
[SourceQuality "1"]
[TimeControl "5400+30"]

1. d4 {[%emt 0:00:17]} Nf6 {[%emt 0:01:09]} 2. Bf4 {[%emt 0:00:06]} g6 {[%emt 0:00:18]} 3. e3 {[%emt 0:00:12]} Bg7 {[%emt 0:00:08]} 4. Nf3 {[%emt 0:00:12]} O-O {[%emt 0:01:13]} 5. c4 {[%emt 0:00:28]} d5 {[%emt 0:00:09]} 6. Nc3 {[%emt 0:00:17]} c6 {[%emt 0:02:03]} 7. Be2 {[%emt 0:01:04]} Nbd7 {[%emt 0:00:46]} 8. h3 {[%emt 0:00:35]} dxc4 {[%emt 0:03:27]} 9. Bxc4 {[%emt 0:00:36]} Nb6 {[%emt 0:01:22]} 10. Be2 {[%emt 0:00:28]} Nbd5 {[%emt 0:00:41]} 11. Be5 {[%emt 0:02:17]} Bf5 {[%emt 0:03:55]} 12. Bd3 {[%emt 0:08:01]} Bxd3 {[%emt 0:05:11]} 13. Qxd3 {[%emt 0:00:32]} Qb6 {[%emt 0:01:42]} 14. Qd2 {[%emt 0:06:22]} Nxc3 {[%emt 0:00:54]} 15. Qxc3 {[%emt 0:03:19]} Ne4 {[%emt 0:00:36]} 16. Qc2 {[%emt 0:10:04]} Qa5+ {[%emt 0:02:47]} 17. Ke2 {[%emt 0:01:59]} Qb5+ {[%emt 0:03:05]} 18. Ke1 {[%emt 0:00:48]} Bxe5 {[%emt 0:00:57]} 19. Nxe5 {[%emt 0:01:12]} Nf6 {[%emt 0:02:31]} 20. Qe2 {[%emt 0:02:18]} Qd5 {[%emt 0:01:19]} 21. Kf1 {[%emt 0:06:47]} c5 {[%emt 0:02:02]} 22. Nf3 {[%emt 0:05:56]} Rfd8 {[%emt 0:02:32]} 23. Kg1 {[%emt 0:03:15]} Rac8 {[%emt 0:02:37]} 24. Kh2 {[%emt 0:01:15]} Qe4 {[%emt 0:01:35]} 25. Rhd1 {[%emt 0:02:53]} cxd4 {[%emt 0:07:27]} 26. Nxd4 {[%emt 0:00:52]} Rd5 {[%emt 0:01:07]} 27. Re1 {[%emt 0:11:36]} Rdc5 {[%emt 0:03:35]} 28. Rad1 {[%emt 0:02:59]} Qe5+ {[%emt 0:03:30]} 29. Kg1 {[%emt 0:00:46]} Qc7 {[%emt 0:03:28]} 30. b4 {[%emt 0:04:31]} Rc4 {[%emt 0:01:10]} 31. a3 {[%emt 0:03:16]} e5 {[%emt 0:01:18]} 32. Nb3 {[%emt 0:01:15]} b6 {[%emt 0:01:43]} 33. Rc1 {[%emt 0:01:56]} Ne4 {[%emt 0:02:59]} 34. Rxc4 {[%emt 0:01:08]} Qxc4 {[%emt 0:01:32]} 35. Qxc4 {[%emt 0:00:10]} Rxc4 {[%emt 0:00:05]} 36. Rc1 {[%emt 0:00:20]} Rxc1+ {[%emt 0:01:31]} 37. Nxc1 {[%emt 0:00:07]} Kf8 {[%emt 0:00:18]} 38. Nd3 {[%emt 0:01:38]} f6 {[%emt 0:00:14]} 39. Kf1 {[%emt 0:01:19]} Ke7 {[%emt 0:00:17]} 40. f3 {[%emt 0:00:52]} Nd2+ {[%emt 0:00:25]} 41. Kf2 {[%emt 0:00:56]} Ke6 {[%emt 0:00:51]} 42. Nb2 {[%emt 0:01:38]} Kd5 {[%emt 0:00:30]} 43. a4 {[%emt 0:02:22]} Nc4 {[%emt 0:02:29]} 44. Nd1 {[%emt 0:00:53]} Na3 {[%emt 0:01:29]} 45. Nb2 {[%emt 0:01:01]} Nc2 {[%emt 0:00:22]} 46. b5 {[%emt 0:01:27]} Kc5 {[%emt 0:00:46]} 47. Ke2 {[%emt 0:01:01]} Kb4 {[%emt 0:00:31]} 48. Kd2 {[%emt 0:00:47]} Na3 {[%emt 0:02:08]} 49. f4 {[%emt 0:01:50]} Nc4+ {[%emt 0:04:46]} 50. Nxc4 {[%emt 0:01:28]} Kxc4 {[%emt 0:00:06]} 51. g4 {[%emt 0:01:26]} exf4 {[%emt 0:02:17]} 52. exf4 {[%emt 0:00:10]} f5 {[%emt 0:01:17]} 53. gxf5 {[%emt 0:00:26]} gxf5 {[%emt 0:00:04]} 54. Ke3 {[%emt 0:00:09]} Kc3 {[%emt 0:00:19]} 55. Kf2 {[%emt 0:01:35]} Kd4 {[%emt 0:00:17]} 56. Kf3 {[%emt 0:00:18]} Kd3 {[%emt 0:26:40]} 57. h4 {[%emt 0:00:47]} h5 {[%emt 0:00:00]} 58. Kg3 {[%emt 0:00:34]} Ke3 {[%emt 0:00:00]} 0-1

[Event "34th MPL National U14G-ch 2022"]
[Site "Ahmedabad"]
[Date "2022.05.10"]
[Round "4.8"]
[White "Elakshi Srivastava"]
[Black "Arshiya Das"]
[Result "1/2-1/2"]
[ECO "A36"]
[WhiteElo "1256"]
[BlackElo "1456"]
[Annotator "NA RC COMBH"]
[PlyCount "45"]
[EventDate "2022.05.09"]
[EventType "swiss"]
[EventCountry "IND"]
[SourceTitle "playchess.com"]
[Source "ChessBase"]
[SourceQuality "1"]
[TimeControl "5400+30"]

1. e4 {[%emt 0:00:04]} c5 {[%emt 0:00:04]} 2. c4 {[%emt 0:00:42]} d6 {[%emt 0:00:15]} 3. Nc3 {[%emt 0:00:08]} Nf6 {[%emt 0:00:08]} 4. g3 {[%emt 0:00:06]} Nc6 {[%emt 0:00:23]} 5. Bg2 {[%emt 0:00:21]} e6 {[%emt 0:00:13]} 6. Nge2 {[%emt 0:00:17]} Be7 {[%emt 0:01:11]} 7. h3 {[%emt 0:00:52]} a6 {[%emt 0:03:13]} 8. d3 {[%emt 0:00:56]} Qc7 {[%emt 0:00:54]} 9. Be3 {[%emt 0:00:45]} b6 {[%emt 0:00:43]} 10. O-O {[%emt 0:05:59]} Bb7 {[%emt 0:00:43]} 11. Rb1 {[%emt 0:00:57]} h6 {[%emt 0:08:30]} 12. a3 {[%emt 0:04:34]} Rd8 {[%emt 0:01:26]} 13. Qc2 {[%emt 0:04:08]} Na7 {[%emt 0:16:35]} 14. b4 {[%emt 0:06:19]} e5 {[%emt 0:15:46]} 15. Nd5 {[%emt 0:09:18]} Nxd5 {[%emt 0:00:23]} 16. exd5 {[%emt 0:00:07]} Nc8 {[%emt 0:07:21]} 17. Nc3 {[%emt 0:02:19]} O-O {[%emt 0:03:10]} 18. Qb3 {[%emt 0:12:52]} Ba8 {[%emt 0:05:49]} 19. Qa4 {[%emt 0:02:54]} Bb7 {[%emt 0:05:22]} 20. Qb3 {[%emt 0:01:50]} Ba8 {[%emt 0:00:33]} 21. Qa4 {[%emt 0:00:46]} Bb7 {[%emt 0:00:44]} 22. Qb3 {[%emt 0:00:59]} Ba8 {[%emt 0:10:38]} 23. Bc1 {[%emt 0:44:47]} 1/2-1/2

[Event "34th MPL National U14G-ch 2022"]
[Site "Ahmedabad"]
[Date "2022.05.11"]
[Round "5.1"]
[White "Shubhi Gupta"]
[Black "Bhat Sannidhi Ramakrishna"]
[Result "1/2-1/2"]
[ECO "A41"]
[WhiteElo "1613"]
[BlackElo "1373"]
[Annotator "NA RC COMBH"]
[PlyCount "116"]
[EventDate "2022.05.09"]
[EventType "swiss"]
[EventCountry "IND"]
[SourceTitle "playchess.com"]
[Source "ChessBase"]
[SourceQuality "1"]
[TimeControl "5400+30"]

1. Nf3 {[%emt 0:01:01]} Nc6 {[%emt 0:00:11]} 2. d4 {[%emt 0:00:32]} d6 {[%emt 0:00:10]} 3. c4 {[%emt 0:00:35]} g6 {[%emt 0:00:12]} 4. Nc3 {[%emt 0:00:22]} Bg7 {[%emt 0:00:18]} 5. Bg5 {[%emt 0:01:11]} h6 {[%emt 0:02:11]} 6. Bh4 {[%emt 0:00:47]} g5 {[%emt 0:07:05]} 7. d5 {[%emt 0:02:21]} gxh4 {[%emt 0:04:18]} 8. dxc6 {[%emt 0:00:44]} bxc6 {[%emt 0:00:10]} 9. Nxh4 {[%emt 0:01:51]} e6 {[%emt 0:07:16]} 10. Nf3 {[%emt 0:00:51]} c5 {[%emt 0:05:05]} 11. Qd2 {[%emt 0:04:13]} Ne7 {[%emt 0:04:50]} 12. e3 {[%emt 0:03:18]} Ng6 {[%emt 0:02:18]} 13. Bd3 {[%emt 0:01:36]} Bb7 {[%emt 0:01:20]} 14. Be2 {[%emt 0:06:20]} a6 {[%emt 0:02:56]} 15. Rd1 {[%emt 0:03:07]} Rb8 {[%emt 0:02:36]} 16. Qc2 {[%emt 0:06:29]} Bc6 {[%emt 0:05:02]} 17. b3 {[%emt 0:04:42]} Qe7 {[%emt 0:04:51]} 18. Ne4 {[%emt 0:03:42]} O-O {[%emt 0:23:13]} 19. Ng3 {[%emt 0:01:06]} a5 {[%emt 0:01:51]} 20. Nh5 {[%emt 0:08:17]} Bh8 {[%emt 0:03:44]} 21. O-O {[%emt 0:04:57]} Rb6 {[%emt 0:02:06]} 22. Bd3 {[%emt 0:06:20]} f5 {[%emt 0:02:04]} 23. Be2 {[%emt 0:03:09]} Be4 {[%emt 0:01:26]} 24. Qc1 {[%emt 0:01:58]} a4 {[%emt 0:01:01]} 25. Nd2 {[%emt 0:00:53]} axb3 {[%emt 0:02:45]} 26. axb3 {[%emt 0:01:00]} Bc6 {[%emt 0:00:23]} 27. Qc2 {[%emt 0:02:31]} Qg5 {[%emt 0:02:35]} 28. Ng3 {[%emt 0:01:03]} Nh4 {[%emt 0:02:03]} 29. f4 {[%emt 0:01:38]} Qe7 {[%emt 0:00:35]} 30. Nf3 {[%emt 0:01:01]} Rfb8 {[%emt 0:00:51]} 31. Nxh4 {[%emt 0:02:41]} Qxh4 {[%emt 0:00:08]} 32. Rb1 {[%emt 0:00:36]} Qf6 {[%emt 0:03:11]} 33. Bf3 {[%emt 0:00:34]} Bxf3 {[%emt 0:01:32]} 34. Rxf3 {[%emt 0:00:14]} Qc3 {[%emt 0:01:00]} 35. Qxc3 {[%emt 0:01:52]} Bxc3 {[%emt 0:00:02]} 36. e4 {[%emt 0:00:34]} Rxb3 {[%emt 0:02:11]} 37. Rxb3 {[%emt 0:00:27]} Rxb3 {[%emt 0:00:01]} 38. exf5 {[%emt 0:00:36]} Bd4+ {[%emt 0:00:15]} 39. Kf1 {[%emt 0:00:08]} Rxf3+ {[%emt 0:04:43]} 40. gxf3 {[%emt 0:00:01]} Kf7 {[%emt 0:00:12]} 41. fxe6+ {[%emt 0:06:34]} Kxe6 {[%emt 0:00:10]} 42. h3 {[%emt 0:00:44]} Be3 {[%emt 0:00:55]} 43. Nh5 {[%emt 0:01:22]} c6 {[%emt 0:01:30]} 44. Ke2 {[%emt 0:01:15]} Bc1 {[%emt 0:00:15]} 45. Kd1 {[%emt 0:00:19]} Bb2 {[%emt 0:00:15]} 46. Ng3 {[%emt 0:00:56]} d5 {[%emt 0:00:48]} 47. Kc2 {[%emt 0:00:10]} Bd4 {[%emt 0:00:29]} 48. Kd3 {[%emt 0:00:49]} Bf2 {[%emt 0:00:18]} 49. Ne2 {[%emt 0:02:11]} Be1 {[%emt 0:00:42]} 50. Nc1 {[%emt 0:00:45]} Kf5 {[%emt 0:00:29]} 51. Ne2 {[%emt 0:00:07]} Ba5 {[%emt 0:00:20]} 52. Ke3 {[%emt 0:00:59]} d4+ {[%emt 0:00:37]} 53. Kd3 {[%emt 0:00:16]} Bc7 {[%emt 0:00:20]} 54. Ng3+ {[%emt 0:01:43]} Kxf4 {[%emt 0:00:22]} 55. Ne4 {[%emt 0:00:04]} Bb6 {[%emt 0:00:50]} 56. Ke2 {[%emt 0:00:35]} Ke5 {[%emt 0:00:46]} 57. Kd3 {[%emt 0:00:11]} Kf4 {[%emt 0:00:10]} 58. Ke2 {[%emt 0:00:04]} Ke5 {[%emt 0:01:33]} 1/2-1/2